bitfinex-derivatives/quotes_BNBF0:USTF0_20250413
["timestamp","ask_amount","ask_price","bid_price","bid_amount"]
[1744543480386,0.29562618,588.56,587.9,3.312]
[1744543480986,0.33980665,588.57,587.9,3.312]
[1744543482087,0.29565104,588.56,587.9,3.312]
[1744543483285,0.33980665,588.57,587.9,3.312]
[1744543483484,0.29562183,588.56,587.9,3.312]
[1744543488087,0.33980665,588.57,587.9,3.312]
[1744543488285,0.29561873,588.56,587.9,3.312]
[1744543489690,0.33980665,588.57,587.9,3.312]
[1744543489883,0.29562086,588.56,587.9,3.312]
[1744543491390,0.33980665,588.57,587.9,3.312]
[1744543491590,0.29562345,588.56,587.9,3.312]
[1744543492491,1.28663064,589.17,587.9,3.312]
[1744543492692,0.33947212,589.15,587.9,3.312]
[1744543492991,0.29565556,589.14,587.9,3.312]
[1744543493188,0.33948364,589.13,587.9,3.312]
[1744543493386,0.29565556,589.12,587.9,3.312]
[1744543493588,0.33949517,589.11,587.9,3.312]
[1744543493789,0.29565556,589.1,587.9,3.312]
[1744543493986,0.33950669,589.09,587.9,3.312]
[1744543494288,0.29565556,589.08,587.9,3.312]
[1744543494487,0.33951822,589.07,587.9,3.312]
[1744543494688,0.29573419,589.06,587.9,3.312]
[1744543494889,0.33952975,589.05,587.9,3.312]
[1744543495092,0.29573419,589.04,587.9,3.312]
[1744543495287,0.33954127,589.03,587.9,3.312]
[1744543495490,0.29573419,589.02,587.9,3.312]
[1744543495790,0.63528123,589.02,587.9,3.312]
[1744543495991,0.29573419,589.01,587.9,3.312]
[1744543496491,0.29582907,589.0,587.9,3.312]
[1744543496693,0.29573419,588.99,587.9,3.312]
[1744543497395,0.63529852,588.99,587.9,3.312]
[1744543497694,0.29573419,588.98,587.9,3.312]
[1744543497887,0.29568054,588.97,587.9,3.312]
[1744543498190,0.63526217,588.96,587.9,3.312]
[1744543498387,0.63526794,588.95,587.9,3.312]
[1744543498591,0.33959316,588.94,587.9,3.312]
[1744543498890,0.29568054,588.93,587.9,3.312]
[1744543499084,0.63527947,588.93,587.9,3.312]
[1744543499286,0.29568054,588.92,587.9,3.312]
[1744543499492,0.29566592,588.91,587.9,3.312]
[1744543500790,0.29586176,588.92,587.9,3.312]
[1744543500989,0.29565616,588.91,587.9,3.312]
[1744543501493,0.29565616,588.9,587.9,3.312]
[1744543501691,0.29565616,588.92,587.9,3.312]
[1744543501992,0.29565616,588.91,587.9,3.312]
[1744543502192,0.33959893,588.93,587.9,3.312]
[1744543502392,0.29565869,588.92,587.9,3.312]
[1744543502593,0.29586805,588.9,587.9,3.312]
[1744543502888,0.29565869,588.89,587.9,3.312]
[1744543503687,0.29586805,588.9,587.9,3.312]
[1744543503895,0.29568163,588.89,587.9,3.312]
[1744543504495,0.29568163,588.88,587.9,3.312]
[1744543504695,0.29568163,588.92,587.9,3.312]
[1744543504894,0.29568163,588.91,587.9,3.312]
[1744543505093,0.29568163,588.9,587.9,3.312]
[1744543505292,0.29568163,588.92,587.9,3.312]
[1744543505497,0.59152704,588.91,587.9,3.312]
[1744543505697,0.29568163,588.9,587.9,3.312]
[1744543507000,0.29584541,588.91,587.9,3.312]
[1744543507193,0.29569702,588.89,587.9,3.312]
[1744543507393,0.29569702,588.88,587.9,3.312]
[1744543507597,0.29569702,588.87,587.9,3.312]
[1744543507897,0.29569702,588.86,587.9,3.312]
[1744543508095,0.29569702,588.92,587.9,3.312]
[1744543508295,0.29569702,588.91,587.9,3.312]
[1744543508498,0.29585296,588.88,587.9,3.312]
[1744543508699,0.29569702,588.87,587.9,3.312]
[1744543510494,0.29571077,588.86,587.9,3.312]
[1744543510700,0.29571077,588.92,587.9,3.312]
[1744543510898,0.29571077,588.91,587.9,3.312]
[1744543511195,0.29571077,588.9,587.9,3.312]
[1744543511394,0.29571077,588.92,587.9,3.312]
[1744543511599,0.29585296,588.9,587.9,3.312]
[1744543511799,0.29571077,588.89,587.9,3.312]
[1744543514401,0.29571077,588.88,587.9,3.312]
[1744543514704,0.29571077,588.92,587.9,3.312]
[1744543515001,0.29571077,588.91,587.9,3.312]
[1744543515201,0.33959893,588.93,587.9,3.312]
[1744543515399,0.29575034,588.92,587.9,3.312]
[1744543518402,0.33959893,588.93,587.9,3.312]
[1744543518603,0.29574676,588.91,587.9,3.312]
[1744543518802,0.29574676,588.9,587.9,3.312]
[1744543519103,0.29574676,588.89,587.9,3.312]
[1744543519302,0.29574676,588.92,587.9,3.312]
[1744543519498,0.29574676,588.91,587.9,3.312]
[1744543519702,0.29574676,588.9,587.9,3.312]
[1744543519900,0.29574676,588.92,587.9,3.312]
[1744543520100,0.29575171,588.91,587.9,3.312]
[1744543520300,0.29575171,588.9,587.9,3.312]
[1744543520500,0.29575171,588.92,587.9,3.312]
[1744543520699,0.29575171,588.91,587.9,3.312]
[1744543520897,0.29575171,588.92,587.9,3.312]
[1744543521099,0.29575171,588.91,587.9,3.312]
[1744543521301,0.29575171,588.92,587.9,3.312]
[1744543521498,0.29575171,588.91,587.9,3.312]
[1744543521702,0.29575171,588.9,587.9,3.312]
[1744543521903,0.29575171,588.92,587.9,3.312]
[1744543522100,0.29575171,588.91,587.9,3.312]
[1744543522399,0.29575171,588.9,587.9,3.312]
[1744543522605,0.33959893,588.93,587.9,3.312]
[1744543522606,0.29575171,588.92,587.9,3.312]
[1744543522905,0.29575171,588.91,587.9,3.312]
[1744543523205,0.29575171,588.9,587.9,3.312]
[1744543523405,0.29575171,588.92,587.9,3.312]
[1744543526409,0.33959893,588.93,587.9,3.312]
[1744543526610,0.29574046,588.92,587.9,3.312]
[1744543529613,0.33959893,588.93,587.9,3.312]
[1744543529912,0.29570419,588.92,587.9,3.312]
[1744543534710,0.29570419,588.91,587.9,3.312]
[1744543534913,0.29570419,588.9,587.9,3.312]
[1744543535112,0.29570419,588.89,587.9,3.312]
[1744543535318,0.29570419,588.88,587.9,3.312]
[1744543535519,0.29585547,588.88,587.9,3.312]
[1744543535819,0.29570419,588.87,587.9,3.312]
[1744543536020,0.29570419,588.86,587.9,3.312]
[1744543536219,0.29570419,588.85,587.9,3.312]
[1744543536420,0.29570419,588.84,587.9,3.312]
[1744543536715,0.29570419,588.83,587.9,3.312]
[1744543536914,0.29570419,588.82,587.9,3.312]
[1744543537118,0.29570419,588.81,587.9,3.312]
[1744543537316,0.33967391,588.8,587.9,3.312]
[1744543537514,0.29570419,588.79,587.9,3.312]
[1744543537821,0.33968545,588.78,587.9,3.312]
[1744543538020,0.2956603,588.77,587.9,3.312]
[1744543538420,0.29591711,588.76,587.9,3.312]
[1744543538822,0.2956603,588.75,587.9,3.312]
[1744543539420,0.29591711,588.76,587.9,3.312]
[1744543539621,0.2956636,588.75,587.9,3.312]
[1744543540521,0.2956636,588.77,587.9,3.312]
[1744543541023,0.33968545,588.78,587.9,3.312]
[1744543541224,0.29565299,588.77,587.9,3.312]
[1744543541521,0.5915462,588.77,587.9,3.312]
[1744543541827,0.29565299,588.76,587.9,3.312]
[1744543543430,0.29565299,588.77,587.9,3.312]
[1744543543624,0.29565299,588.76,587.9,3.312]
[1744543543828,0.29565299,588.77,587.9,3.312]
[1744543544024,0.29565299,588.76,587.9,3.312]
[1744543544229,0.29565299,588.77,587.9,3.312]
[1744543544427,0.29565822,588.76,587.9,3.312]
[1744543544630,0.59156526,588.75,587.9,3.312]
[1744543544825,0.29565822,588.74,587.9,3.312]
[1744543546432,0.29565822,588.73,587.9,3.312]
[1744543546627,0.29565822,588.77,587.9,3.312]
[1744543546827,0.29565822,588.76,587.9,3.312]
[1744543547027,0.29565822,588.77,587.9,3.312]
[1744543547228,0.29565822,588.76,587.9,3.312]
[1744543547428,0.29565822,588.77,587.9,3.312]
[1744543547634,0.59156526,588.76,587.9,3.312]
[1744543547833,0.29565822,588.75,587.9,3.312]
[1744543548228,0.29565822,588.77,587.9,3.312]
[1744543548429,0.29565822,588.76,587.9,3.312]
[1744543548633,0.29565822,588.77,587.9,3.312]
[1744543548933,0.29565822,588.76,587.9,3.312]
[1744543549127,0.29565822,588.77,587.9,3.312]
[1744543565045,0.29571733,588.76,587.9,3.312]
[1744543565248,0.29571733,588.77,587.9,3.312]
[1744543565449,0.29571733,588.76,587.9,3.312]
[1744543565744,0.29571733,588.75,587.9,3.312]
[1744543565944,0.29571733,588.77,587.9,3.312]
[1744543566148,0.29571733,588.76,587.9,3.312]
[1744543566342,0.29571733,588.77,587.9,3.312]
[1744543566543,0.29571733,588.76,587.9,3.312]
[1744543566747,0.29571733,588.77,587.9,3.312]
[1744543566949,0.29571733,588.76,587.9,3.312]
[1744543567145,0.29571733,588.77,587.9,3.312]
[1744543571451,0.33968545,588.78,587.9,3.312]
[1744543571649,0.29575994,588.77,587.9,3.312]
[1744543573054,0.33968545,588.78,587.9,3.312]
[1744543573245,0.29574611,588.77,587.9,3.312]
[1744543578760,0.33968545,588.78,587.9,3.312]
[1744543583962,1.28663064,589.42,587.9,3.312]
[1744543584164,0.33932813,589.4,587.9,3.312]
[1744543584365,0.29581174,589.39,587.9,3.312]
[1744543584561,0.29580649,589.38,587.9,3.312]
[1744543584761,0.29580649,589.39,587.9,3.312]
[1744543584964,0.29580649,589.38,587.9,3.312]
[1744543585161,0.29580649,589.39,587.9,3.312]
[1744543585363,0.29575615,589.38,587.9,3.312]
[1744543585561,0.29580649,589.37,587.9,3.312]
[1744543586059,0.29575615,589.38,587.9,3.312]
[1744543586265,0.33935116,589.36,587.9,3.312]
[1744543586462,0.2958168,589.35,587.9,3.312]
[1744543586666,0.33936843,589.33,587.9,3.312]
[1744543586869,0.2958168,589.32,587.9,3.312]
[1744543587070,0.33938571,589.3,587.9,3.312]
[1744543587267,0.2958168,589.29,587.9,3.312]
[1744543587465,0.33939723,589.28,587.9,3.312]
[1744543587771,0.2958168,589.27,587.9,3.312]
[1744543588071,0.33940874,589.26,587.9,3.312]
[1744543588266,0.2958168,589.25,587.9,3.312]
[1744543588469,0.33942027,589.24,587.9,3.312]
[1744543588668,0.2958168,589.23,587.9,3.312]
[1744543588869,0.33943179,589.22,587.9,3.312]
[1744543589070,0.2958168,589.21,587.9,3.312]
[1744543589265,0.63526011,589.2,587.9,3.312]
[1744543589466,0.63526587,589.19,587.9,3.312]
[1744543589665,0.63527163,589.18,587.9,3.312]
[1744543589866,1.28663064,589.14,587.9,3.312]
[1744543590070,0.63530044,589.13,587.9,3.312]
[1744543590366,0.6353062,589.12,587.9,3.312]
[1744543590572,0.2958168,589.11,587.9,3.312]
[1744543590771,0.2958168,589.1,587.9,3.312]
[1744543590965,0.2958168,589.09,587.9,3.312]
[1744543591165,0.3394894,589.12,587.9,3.312]
[1744543591367,0.29578748,589.11,587.9,3.312]
[1744543591671,0.29578748,589.1,587.9,3.312]
[1744543591872,0.29578748,589.09,587.9,3.312]
[1744543592072,0.29578748,589.11,587.9,3.312]
[1744543592272,0.29578748,589.1,587.9,3.312]
[1744543592474,1.28663064,589.09,587.9,3.312]
[1744543592681,0.29578748,589.08,587.9,3.312]
[1744543594580,0.29578748,589.08,587.91,0.34018812]
[1744543595283,0.29578748,589.09,587.91,0.34018812]
[1744543597477,0.29578748,589.09,587.91,2.36618812]
[1744543597680,0.3394894,589.12,587.91,2.36618812]
[1744543597883,0.29585634,589.11,587.91,2.36618812]
[1744543598184,0.29585634,589.11,587.91,2.98118812]
[1744543598879,0.29585634,589.11,587.92,0.31237419]
[1744543599084,0.29585634,589.11,587.93,0.34017655]
[1744543599384,0.63525687,589.12,587.93,0.34017655]
[1744543599579,0.29585068,589.11,587.93,0.34017655]
[1744543604591,0.29585068,589.11,587.94,0.31237349]
[1744543604791,0.29585068,589.11,587.95,0.34016498]
[1744543606091,0.29587499,589.1,587.95,0.34016498]
[1744543606286,0.29587499,589.11,587.95,0.34016498]
[1744543606484,0.29587499,589.09,587.95,0.34016498]
[1744543606688,0.29587499,589.08,587.95,0.34016498]
[1744543606889,0.29587499,589.11,587.96,0.31236828]
[1744543607087,0.29587499,589.11,587.97,0.3401534]
[1744543607485,0.3394894,589.12,587.97,0.3401534]
[1744543607685,0.29587109,589.11,587.97,0.3401534]
[1744543610892,0.29588242,589.1,587.97,0.3401534]
[1744543611087,0.29588242,589.11,587.97,0.3401534]
[1744543611893,0.29588242,589.11,587.98,0.541]
[1744543612093,0.29588242,589.11,587.99,0.34014183]
[1744543614194,0.29587896,589.1,587.99,0.34014183]
[1744543614392,0.29587896,589.11,587.99,0.34014183]
[1744543615195,0.29587896,589.11,588.0,0.541]
[1744543616793,0.29587896,589.11,588.01,0.34013026]
[1744543618998,0.3394894,589.12,588.01,0.34013026]
[1744543619200,0.29581738,589.11,588.01,0.34013026]
[1744543619698,0.29581738,589.11,588.02,0.52]
[1744543619899,0.29581738,589.11,588.03,0.3401187]
[1744543620498,0.3394894,589.12,588.03,0.3401187]
[1744543620699,0.29583138,589.11,588.03,0.3401187]
[1744543622500,0.29583138,589.11,588.03,1.0431187]
[1744543622702,0.3394894,589.12,588.03,1.0431187]
[1744543622899,0.3394894,589.12,588.03,1.5731187]
[1744543623096,0.29579236,589.11,588.03,1.5731187]
[1744543623298,0.3394894,589.12,588.03,1.5731187]
[1744543623503,0.29578893,589.11,588.03,1.5731187]
[1744543623700,0.3394894,589.12,588.03,1.5731187]
[1744543624005,0.29578753,589.11,588.03,1.5731187]
[1744543624499,0.29576244,589.1,588.03,1.5731187]
[1744543624702,0.29578753,589.09,588.03,1.5731187]
[1744543624903,0.29576244,589.1,588.03,1.5731187]
[1744543625103,0.29579916,589.09,588.03,1.5731187]
[1744543627198,0.29579916,589.08,588.03,1.5731187]
[1744543627403,0.29579916,589.11,588.03,1.5731187]
[1744543627603,0.3394894,589.12,588.03,1.5731187]
[1744543627604,0.29579916,589.1,588.03,1.5731187]
[1744543627905,0.29579916,589.09,588.03,1.5731187]
[1744543628101,0.29579916,589.11,588.03,1.5731187]
[1744543629001,0.29579916,589.11,588.03,2.1391187]
[1744543630609,0.29579916,589.11,588.03,2.8501187]
[1744543634614,1.62612004,589.12,588.03,3.3261187]
[1744543634813,0.29601137,589.11,588.03,3.3261187]
[1744543636212,0.3394894,589.12,588.03,3.3261187]
[1744543636414,0.29600641,589.11,588.03,3.3261187]
[1744543637815,0.3394894,589.12,588.03,3.3261187]
[1744543638116,0.29602109,589.11,588.03,3.3261187]
[1744543639519,0.3394894,589.12,588.03,3.3261187]
[1744543639710,0.29602522,589.11,588.03,3.3261187]
[1744543640315,0.3394894,589.12,588.03,3.3261187]
[1744543640508,0.2960266,589.11,588.03,3.3261187]
[1744543645220,0.2960266,589.11,588.03,3.9901187]
[1744543645719,0.2960266,589.11,588.04,0.31229507]
[1744543645920,0.3394894,589.12,588.05,0.34010713]
[1744543646121,0.29602147,589.11,588.05,0.34010713]
[1744543647422,0.3394894,589.12,588.05,0.34010713]
[1744543647617,0.2960056,589.11,588.05,0.34010713]
[1744543649021,0.3394894,589.12,588.05,0.34010713]
[1744543649322,0.29598612,589.11,588.05,0.99810713]
[1744543653926,0.3394894,589.12,588.05,0.99810713]
[1744543654227,0.29599176,589.11,588.05,0.99810713]
[1744543658827,0.29594749,589.1,588.05,0.99810713]
[1744543659022,0.29594749,589.09,588.05,0.99810713]
[1744543659222,0.29594749,589.11,588.05,0.99810713]
[1744543659426,0.3394894,589.12,588.05,0.99810713]
[1744543659427,0.29594749,589.1,588.05,0.99810713]
[1744543659626,0.29594749,589.11,588.05,0.99810713]
[1744543659828,0.29594749,589.1,588.05,0.99810713]
[1744543660029,0.29594749,589.11,588.05,1.59010713]
[1744543661631,0.29594749,589.11,588.05,2.08610713]
[1744543661933,0.3394894,589.12,588.05,2.08610713]
[1744543662130,0.29595897,589.11,588.05,2.08610713]
[1744543667434,0.29595897,589.11,588.06,0.31232248]
[1744543668335,0.3394894,589.12,588.05,2.08610713]
[1744543668537,0.29595176,589.11,588.06,0.31232322]
[1744543668737,0.29595176,589.11,588.05,2.08610713]
[1744543670239,0.29595176,589.11,588.06,0.31231398]
[1744543670436,0.29595176,589.11,588.05,2.08610713]
[1744543670639,0.29595176,589.11,588.07,0.34009556]
[1744543676440,0.3394894,589.12,588.07,0.34009556]
[1744543676643,0.29591901,589.11,588.07,0.34009556]
[1744543676839,0.3394894,589.12,588.07,0.34009556]
[1744543677235,0.3394894,589.12,588.08,0.662]
[1744543677636,0.3394894,589.12,588.09,0.58]
[1744543677843,0.3394894,589.12,588.1,0.34007821]
[1744543678143,1.28663064,589.26,588.1,0.34007821]
[1744543678944,1.28663064,589.81,588.1,0.34007821]
[1744543679139,0.29599781,589.8,588.1,0.34007821]
[1744543679339,0.59157812,589.8,588.1,0.34007821]
[1744543679540,0.29599781,589.79,588.1,0.34007821]
[1744543679743,0.29599781,589.78,588.1,0.34007821]
[1744543679940,0.33912099,589.76,588.1,0.34007821]
[1744543680144,0.29599781,589.75,588.1,0.34007821]
[1744543680445,0.33913824,589.73,588.1,0.34007821]
[1744543680646,0.29599548,589.72,588.1,0.34007821]
[1744543680847,0.3391555,589.7,588.11,0.481]
[1744543681141,0.29600145,589.69,588.12,0.90606665]
[1744543681343,0.63516845,589.68,588.13,0.65228469]
[1744543681547,0.6351742,589.67,588.14,0.6522789]
[1744543681741,0.29600145,589.66,588.15,0.3400493]
[1744543682045,0.63518571,589.65,588.15,0.3400493]
[1744543682246,0.63519146,589.64,588.15,0.3400493]
[1744543682441,0.63519721,589.63,588.15,0.3400493]
[1744543682639,0.29600145,589.62,588.15,0.3400493]
[1744543682844,0.33920727,589.61,588.15,0.3400493]
[1744543683043,0.29600145,589.6,588.15,0.3400493]
[1744543683247,0.33921877,589.59,588.15,0.3400493]
[1744543683541,0.29600145,589.58,588.15,0.3400493]
[1744543683745,0.33923028,589.57,588.15,0.3400493]
[1744543684048,0.29600145,589.56,588.15,0.3400493]
[1744543684242,0.29600145,589.56,588.16,0.31221135]
[1744543684549,0.29600145,589.56,588.17,0.34003774]
[1744543684746,0.29600145,589.56,588.18,0.31221135]
[1744543684946,0.29600145,589.56,588.19,0.34002618]
[1744543687146,0.33923028,589.57,588.19,0.34002618]
[1744543687346,0.29604166,589.56,588.19,0.34002618]
[1744543687849,0.29604166,589.56,588.2,0.31219596]
[1744543688043,0.29604166,589.56,588.21,0.34001462]
[1744543688649,0.2955891,589.55,588.22,0.687]
[1744543688848,0.29604166,589.54,588.23,0.3121854]
[1744543689148,0.29604166,589.53,588.23,0.3121854]
[1744543689347,0.29604166,589.52,588.23,0.3121854]
[1744543689649,0.29604166,589.51,588.23,0.3121854]
[1744543689948,0.29604166,589.5,588.23,0.3121854]
[1744543690147,0.29604166,589.54,588.23,0.3121854]
[1744543690348,0.33923028,589.57,588.22,0.687]
[1744543690648,0.29607372,589.56,588.23,0.31218542]
[1744543690948,0.29607372,589.55,588.23,0.31218542]
[1744543691248,0.29607372,589.54,588.23,0.31218542]
[1744543691447,0.33923028,589.57,588.23,0.31218542]
[1744543691448,0.29607372,589.53,588.23,0.31218542]
[1744543691644,0.29607372,589.52,588.23,0.31218542]
[1744543691845,0.29607372,589.51,588.23,0.31218542]
[1744543692044,0.29606942,589.5,588.24,0.31219272]
[1744543692247,0.29606942,589.49,588.23,0.31219272]
[1744543692443,0.29606942,589.48,588.24,0.65219]
[1744543692748,0.29557654,589.54,588.25,0.65218422]
[1744543692749,0.29606942,589.47,588.25,0.65218422]
[1744543692948,0.29606942,589.53,588.26,0.65217844]
[1744543693150,0.29606942,589.52,588.27,0.65217266]
[1744543693345,0.29606942,589.51,588.28,0.31219272]
[1744543693550,0.29606942,589.51,588.29,0.33996838]
[1744543693749,0.29606942,589.5,588.3,0.31219272]
[1744543693945,0.29606942,589.5,588.31,0.33995682]
[1744543694152,0.29606942,589.49,588.31,0.33995682]
[1744543694346,0.29606942,589.48,588.31,0.33995682]
[1744543694550,0.29606942,589.47,588.31,0.33995682]
[1744543694753,0.29557654,589.5,588.31,0.33995682]
[1744543694946,0.29606942,589.49,588.31,0.33995682]
[1744543696351,0.29606942,589.49,588.31,1.08395682]
[1744543696550,0.29606942,589.48,588.31,1.08395682]
[1744543696753,0.29559537,589.48,588.31,1.08395682]
[1744543696946,0.29605954,589.47,588.31,1.08395682]
[1744543701557,0.29559537,589.48,588.31,1.08395682]
[1744543701757,0.29608523,589.47,588.31,1.08395682]
[1744543702550,0.29608523,589.56,588.31,1.08395682]
[1744543702754,0.63532702,589.55,588.31,1.08395682]
[1744543702955,0.63533277,589.54,588.31,1.08395682]
[1744543703156,0.3392533,589.53,588.31,1.08395682]
[1744543703356,0.2960876,589.52,588.31,1.83495682]
[1744543703658,0.59163779,589.52,588.31,1.83495682]
[1744543703858,0.2960876,589.51,588.31,1.83495682]
[1744543704759,0.29555019,589.52,588.31,1.83495682]
[1744543704959,0.29612725,589.51,588.31,1.83495682]
[1744543705558,0.29612725,589.52,588.31,1.83495682]
[1744543705759,0.29612725,589.51,588.31,1.83495682]
[1744543705955,0.29612725,589.5,588.31,2.49995682]
[1744543706260,0.29612725,589.49,588.31,2.49995682]
[1744543706461,0.29612725,589.52,588.31,2.49995682]
[1744543707963,0.63481604,589.53,588.31,2.49995682]
[1744543708164,0.29612193,589.52,588.31,2.49995682]
[1744543708364,0.29612193,589.52,588.31,3.25995682]
[1744543709662,0.3392533,589.53,588.32,0.31213518]
[1744543709876,0.29615969,589.52,588.32,0.31213518]
[1744543710769,0.29615969,589.52,588.33,0.33994526]
[1744543710969,0.29615969,589.52,588.34,0.31213518]
[1744543711169,0.29615969,589.52,588.35,0.33993371]
[1744543711363,0.29615969,589.52,588.36,0.31213518]
[1744543711567,0.3392533,589.53,588.37,0.33992215]
[1744543711768,0.29619059,589.52,588.38,0.31213276]
[1744543711968,0.29619059,589.52,588.39,0.3399106]
[1744543712169,0.29619059,589.52,588.4,0.31213276]
[1744543712465,0.29619059,589.52,588.41,0.33989904]
[1744543714767,0.3392533,589.53,588.41,0.33989904]
[1744543715072,0.29618026,589.52,588.41,0.33989904]
[1744543716072,0.3392533,589.53,588.41,0.33989904]
[1744543716274,0.29616479,589.52,588.41,0.33989904]
[1744543718672,0.29558031,589.51,588.41,0.33989904]
[1744543718867,0.29616479,589.5,588.41,0.33989904]
[1744543720075,0.29616479,589.5,588.41,0.98589904]
[1744543720570,0.29616479,589.52,588.41,0.98589904]
[1744543720770,0.29616479,589.51,588.41,0.98589904]
[1744543721070,0.29615882,589.5,588.41,0.98589904]
[1744543721275,0.29615882,589.52,588.41,0.98589904]
[1744543721474,0.29615882,589.51,588.41,0.98589904]
[1744543721671,0.29557278,589.49,588.41,1.73489904]
[1744543721868,0.29615882,589.48,588.41,1.73489904]
[1744543722478,0.29557278,589.49,588.41,1.73489904]
[1744543722671,0.29613295,589.48,588.41,1.73489904]
[1744543726779,0.33928783,589.47,588.41,1.73489904]
[1744543726975,0.29613295,589.46,588.41,1.73489904]
[1744543727375,0.33929934,589.45,588.41,1.73489904]
[1744543727583,0.29613295,589.44,588.41,1.73489904]
[1744543727780,0.63543805,589.44,588.41,1.73489904]
[1744543727979,0.29613295,589.43,588.41,1.73489904]
[1744543728877,0.33931661,589.42,588.41,1.73489904]
[1744543729077,0.29613295,589.41,588.41,1.73489904]
[1744543729277,0.33932813,589.4,588.41,1.73489904]
[1744543729479,0.29613295,589.39,588.41,2.49889904]
[1744543729680,0.63546683,589.39,588.41,2.49889904]
[1744543729883,0.29613295,589.38,588.41,2.49889904]
[1744543730576,0.29562551,589.37,588.41,2.49889904]
[1744543730883,0.29613295,589.36,588.41,3.19589904]
[1744543732276,0.29606143,589.35,588.41,2.856]
[1744543732478,0.33935691,589.35,588.41,2.856]
[1744543732677,0.29606143,589.34,588.41,2.856]
[1744543733778,0.29564058,589.33,588.41,2.856]
[1744543734177,0.29603081,589.32,588.41,2.856]
[1744543735382,0.33935691,589.35,588.41,2.856]
[1744543735578,0.29602762,589.34,588.41,3.35]
[1744543735777,0.29602762,589.33,588.41,3.35]
[1744543735977,0.29602762,589.32,588.41,3.35]
[1744543736179,0.29602762,589.31,588.41,3.35]
[1744543736378,0.29602762,589.3,588.41,3.35]
[1744543736578,0.29602762,589.29,588.41,3.35]
[1744543736777,0.29563806,589.3,588.41,3.35]
[1744543737182,0.29604416,589.29,588.41,3.35]
[1744543738685,0.29604416,589.34,588.41,3.35]
[1744543738884,0.29604416,589.28,588.41,3.35]
[1744543739086,0.29604416,589.27,588.41,3.35]
[1744543739385,0.29604416,589.26,588.41,3.35]
[1744543739586,0.29604416,589.34,588.41,3.35]
[1744543739787,0.29604416,589.33,588.41,3.35]
[1744543739985,0.29604416,589.34,588.41,3.35]
[1744543740187,0.29606272,589.33,588.41,3.35]
[1744543740381,0.29606272,589.34,588.41,3.35]
[1744543740682,0.29606272,589.33,588.41,3.35]
[1744543740886,0.29606272,589.34,588.41,3.35]
[1744543741081,0.29606272,589.32,588.41,3.35]
[1744543741282,0.33935691,589.35,588.41,3.35]
[1744543741487,0.2960682,589.34,588.41,3.35]
[1744543742783,0.63497488,589.35,588.41,3.35]
[1744543742986,0.29606526,589.34,588.41,3.35]
[1744543744387,0.33935691,589.35,588.41,3.35]
[1744543744587,0.29606667,589.34,588.41,3.35]
[1744543744787,0.29606667,589.33,588.41,4.148]
[1744543744982,0.29606667,589.34,588.41,4.148]
[1744543745888,0.63497488,589.35,588.41,4.148]
[1744543746081,0.29607671,589.34,588.41,4.148]
[1744543747487,0.33935691,589.35,588.41,4.148]
[1744543747786,0.29607016,589.34,588.41,4.148]
[1744543750697,0.33935691,589.35,588.41,4.148]
[1744543750891,0.29610045,589.34,588.41,4.148]
[1744543755498,0.33935691,589.35,588.41,4.148]
[1744543755697,0.29607017,589.34,588.41,4.148]
[1744543757000,0.33935691,589.35,588.41,4.148]
[1744543757193,0.29608644,589.34,588.41,4.148]
[1744543766603,0.33935691,589.35,588.41,4.148]
[1744543766797,0.29622697,589.34,588.41,4.148]
[1744543768205,0.33935691,589.35,588.41,4.148]
[1744543768404,0.29623035,589.34,588.41,4.148]
[1744543769907,0.29622719,589.33,588.41,4.148]
[1744543770106,0.33935691,589.35,588.41,4.148]
[1744543770107,0.29622719,589.34,588.41,4.148]
[1744543771407,0.33935691,589.35,588.41,4.148]
[1744543771610,0.29621268,589.34,588.41,4.148]
[1744543774705,0.29623247,589.33,588.41,4.148]
[1744543774906,0.29623247,589.34,588.41,4.148]
[1744543775105,0.29623247,589.33,588.41,4.148]
[1744543775305,0.29623247,589.32,588.41,4.148]
[1744543775611,0.29623247,589.31,588.41,4.148]
[1744543775810,0.29623247,589.34,588.41,4.148]
[1744543776011,0.29623247,589.33,588.41,4.148]
[1744543776206,0.29623247,589.34,588.41,4.148]
[1744543776406,0.29623247,589.33,588.41,4.148]
[1744543776606,0.29623247,589.34,588.41,4.148]